bitfinex/quotes_ETHUSD_20250815
["timestamp","ask_amount","ask_price","bid_price","bid_amount"]
[1755282450290,4.78374384,4426.2,4426.1,0.02]
[1755282450658,7.78374384,4426.2,4426.1,0.02]
[1755282450863,9.19171745,4426.2,4426.1,0.02]
[1755282451077,9.19267597,4426.2,4426.1,0.02]
[1755282451281,12.68686839,4426.2,4426.1,0.02]
[1755282451500,11.48615145,4426.2,4426.1,0.02]
[1755282452403,11.27774384,4426.2,4426.1,0.02]
[1755282453405,12.07862918,4426.2,4426.1,0.02]
[1755282455500,11.27774384,4426.2,4426.1,0.02]
[1755282455911,5.23756952,4426.2,4426.1,0.02]
[1755282456108,4.08762187,4426.2,4426.1,0.02]
[1755282456313,0.1128,4426.2,4426.1,0.02]
[1755282456508,3.6068,4426.2,4426.1,0.02]
[1755282456911,5.86607432,4426.2,4426.1,0.02]
[1755282457119,6.33807432,4426.2,4426.1,0.02]
[1755282457286,8.2252253,4426.2,4426.1,0.02]
[1755282457487,11.2252253,4426.2,4426.1,0.02]
[1755282457818,12.2346317,4426.2,4426.1,0.02]
[1755282458501,11.43374636,4426.2,4426.1,0.02]
[1755282458711,12.2346317,4426.2,4426.1,0.02]
[1755282459276,11.43374636,4426.2,4426.1,0.02]
[1755282459586,11.2252253,4426.2,4426.1,0.02]
[1755282459790,11.82589317,4426.2,4426.1,0.02]
[1755282460010,11.2252253,4426.2,4426.1,0.02]
[1755282460215,5.25932536,4426.1,4426.0,1e-08]
[1755282460414,5.25932536,4426.1,4423.1,0.02]
[1755282460415,2.26029564,4424.2,4423.1,0.02]
[1755282460716,8.75429564,4424.2,4423.1,0.02]
[1755282460913,10.16031751,4424.2,4423.1,0.02]
[1755282461081,11.48239342,4424.2,4423.1,0.02]
[1755282461282,8.29689778,4424.2,4423.1,0.02]
[1755282461483,4.81607591,4424.2,4423.1,2.28084567]
[1755282461681,0.9252,4424.8,4423.3,0.2999]
[1755282461881,3.494,4424.7,4423.3,0.3665]
[1755282462219,3.0,4424.6,4423.3,0.3665]
[1755282462377,3.495,4424.5,4423.3,0.2999]
[1755282462577,5.08262432,4424.5,4423.3,0.2999]
[1755282462778,2.73221366,4424.4,4423.1,2.28081106]
[1755282462991,3.495,4424.3,4423.1,2.28081106]
[1755282463194,4.4202,4424.3,4423.1,0.02]
[1755282463417,2.73229564,4424.2,4423.1,0.02]
[1755282463582,3.51452822,4424.2,4423.1,0.02]
[1755282463783,7.44692056,4424.2,4423.1,0.02]
[1755282464714,1.26142492,4424.2,4423.1,0.02]
[1755282464883,3.496,4424.2,4423.4,0.0666]
[1755282465087,3.496,4424.2,4423.8,2.26048947]
[1755282465282,3.496,4424.4,4423.8,0.2999]
[1755282465678,0.47893402,4425.1,4423.4,2.26070233]
[1755282465921,3.496,4425.0,4424.2,0.3665]
[1755282466218,2.25948517,4425.8,4424.2,0.3665]
[1755282466521,5.75653758,4425.7,4424.6,2.26008642]
[1755282466705,2.2595845,4425.6,4424.5,2.26013238]
[1755282467717,5.75653408,4425.7,4424.6,2.26007883]
[1755282468491,5.75653408,4425.7,4424.7,2.2600364]
[1755282468792,5.75653408,4425.7,4424.4,2.26019347]
[1755282469000,3.497,4425.7,4424.5,0.26266935]
[1755282469202,2.73162495,4425.6,4424.4,2.26014724]
[1755282469525,0.472,4425.6,4424.2,0.3665]
[1755282469721,2.73158727,4425.6,4424.3,2.26024455]
[1755282469913,0.472,4425.6,4424.3,2.26024455]
[1755282470112,0.472,4425.6,4424.5,2.26009536]
[1755282470318,0.1128,4425.3,4424.6,0.1128]
[1755282470627,3.495,4425.2,4424.6,0.1128]
[1755282474144,3.495,4426.0,4425.6,2.25957067]
[1755282474341,3.495,4426.0,4425.5,0.1128]
[1755282474342,0.1128,4426.1,4425.5,0.1128]
[1755282474644,3.495,4426.0,4425.5,2.37242644]
[1755282474900,3.495,4426.0,4425.8,2.25946996]
[1755282475063,0.1128,4426.1,4425.6,0.0225958]
[1755282475238,0.1128,4426.1,4426.0,2.25937641]
[1755282475451,0.1128,4426.1,4426.0,5.85181405]
[1755282475759,0.002,4426.9,4426.8,2.2589681]
[1755282476136,0.002,4426.9,4426.8,2.7382681]
[1755282476320,0.002,4426.9,4426.8,5.7382681]
[1755282478029,0.002,4426.9,4426.8,6.2882681]
[1755282478216,0.002,4426.9,4426.8,7.14299899]
[1755282480244,0.002,4426.9,4426.8,6.22649899]
[1755282480447,0.002,4426.9,4426.8,0.1128]
[1755282480664,0.9272,4426.9,4425.9,2.25942291]
[1755282480809,0.9272,4426.9,4425.3,0.390416]
[1755282480810,0.9252,4426.8,4426.2,0.1128]
[1755282481015,2.2590371,4426.7,4426.2,0.1128]
[1755282481238,0.31862371,4426.6,4426.2,0.1128]
[1755282481457,0.9252,4426.5,4426.2,0.1128]
[1755282481794,0.002,4426.9,4425.7,0.1128]
[1755282481795,0.1128,4426.3,4425.7,0.1128]
[1755282482382,0.1128,4426.3,4425.7,2.37232558]
[1755282483039,0.1128,4426.3,4425.7,0.1128]
[1755282483553,0.1128,4426.3,4425.7,2.37228241]
[1755282483754,0.1128,4426.3,4425.7,0.1128]
[1755282483938,0.1128,4426.3,4425.7,2.37230901]
[1755282484138,0.002,4426.9,4425.7,0.46319853]
[1755282484139,0.4552,4426.9,4425.7,0.46319853]
[1755282484337,0.002,4426.9,4426.4,2.25912845]
[1755282484544,0.002,4426.9,4426.5,2.25911475]
[1755282484770,0.002,4426.9,4425.9,0.55]
[1755282484933,0.002,4426.9,4426.8,0.1128]
[1755282485382,0.002,4426.9,4426.8,2.3717681]
[1755282486541,0.002,4426.9,4426.8,0.1128]
[1755282487176,0.9663,4426.9,4426.8,0.1128]
[1755282487560,0.9663,4426.9,4425.5,2.25961969]
[1755282487766,0.4669,4426.8,4426.6,0.1128]
[1755282488063,0.9643,4426.8,4426.3,0.1128]
[1755282488239,2.37372777,4426.9,4426.3,0.1128]
[1755282488441,0.9643,4426.8,4426.3,0.1128]
[1755282488637,0.9643,4426.8,4425.3,2.25969816]
[1755282488638,0.1128,4426.4,4425.8,0.1128]
[1755282488885,0.9643,4426.3,4425.8,0.1128]
[1755282489184,0.9643,4426.2,4425.8,0.1128]
[1755282489370,0.4669,4426.1,4425.9,2.2594201]
[1755282489568,0.5797,4426.4,4425.8,0.1128]
[1755282489755,0.1128,4426.4,4425.8,0.1128]
[1755282489944,0.002,4426.9,4426.5,2.25908069]
[1755282490144,0.002,4426.9,4426.3,0.1128]
[1755282490360,0.002,4426.9,4426.7,2.37178462]
[1755282490555,0.002,4426.9,4426.8,2.2589681]
[1755282491743,0.002,4426.9,4426.8,2.5588681]
[1755282491945,0.002,4426.9,4426.8,2.6254681]
[1755282492877,0.002,4426.9,4426.8,5.64805778]
[1755282493044,0.002,4426.9,4426.8,7.82993214]
[1755282493580,0.002,4426.9,4426.8,7.46343214]
[1755282493885,0.002,4426.9,4426.8,5.2589681]
[1755282494673,0.002,4427.0,4426.9,5.25891707]
[1755282494894,0.002,4427.0,4426.9,9.11941707]
[1755282495201,0.002,4427.0,4426.9,5.25891707]
[1755282495498,0.002,4427.0,4426.9,8.75291707]
[1755282495643,0.002,4427.0,4426.9,11.00523972]
[1755282496166,0.002,4427.0,4426.9,10.70533972]
[1755282496373,0.002,4427.0,4426.9,11.07183972]
[1755282496896,0.002,4427.0,4426.9,10.70533972]
[1755282497081,1e-08,4427.9,4427.8,2.80845792]
[1755282497416,0.002,4428.3,4428.2,5.80825391]
[1755282497557,0.002,4428.3,4428.2,9.30325391]
[1755282498192,0.4689,4429.6,4428.5,3.0]
[1755282498383,0.002,4429.6,4429.3,19.75743932]
[1755282498692,0.002,4429.6,4429.3,30.48687633]
[1755282499060,0.002,4429.6,4429.3,31.03687633]
[1755282499406,0.002,4429.6,4429.5,5.80759115]
[1755282500262,0.002,4429.6,4429.5,5.25759115]
[1755282500908,0.4689,4429.6,4429.5,5.25759115]
[1755282501494,0.4689,4429.6,4428.5,2.25809493]
[1755282501695,0.4689,4429.6,4423.4,4.05853196]
[1755282501696,0.9663,4429.6,4427.8,0.50670179]
[1755282501891,0.4669,4429.5,4428.8,2.25794797]
[1755282502102,0.4669,4429.5,4428.9,3.504]
[1755282502409,0.4689,4429.6,4429.1,2.25776473]
[1755282502561,0.4689,4429.6,4429.2,3.504]
[1755282502874,0.9643,4429.5,4429.1,3.504]
[1755282503063,0.9643,4429.4,4429.1,3.504]
[1755282503264,0.002,4429.6,4429.1,3.504]
[1755282503465,0.9643,4429.5,4429.1,3.504]
[1755282503685,0.002,4429.6,4429.1,3.504]
[1755282503686,0.9643,4429.4,4429.1,3.504]
[1755282503878,0.9643,4429.3,4429.1,3.504]
[1755282504200,0.9643,4429.2,4428.7,2.25798218]
[1755282504372,0.9643,4429.1,4428.6,3.0]
[1755282504574,0.4669,4429.1,4429.0,2.25784601]
[1755282504976,0.002,4429.6,4429.1,2.25779273]
[1755282505175,0.4689,4429.6,4429.0,0.4515845]
[1755282505484,0.4689,4429.6,4429.0,2.70942102]
[1755282505694,0.4974,4429.5,4428.8,5.76294332]
[1755282505896,0.4974,4429.5,4429.1,2.25778981]
[1755282506209,0.4974,4429.5,4429.0,2.25784601]
[1755282506366,0.4689,4429.6,4429.0,2.25784601]
[1755282506570,0.4689,4429.6,4428.9,3.505]
[1755282506786,0.4689,4429.6,4429.0,2.25784601]
[1755282506992,0.4689,4429.6,4429.3,0.1128]
[1755282507198,0.4974,4429.5,4429.3,0.1128]
[1755282507627,0.9643,4429.4,4428.9,3.505]
[1755282507921,0.9643,4429.4,4428.7,0.1128]
[1755282507922,1.87837228,4429.3,4428.7,0.1128]
[1755282508077,0.4788877,4429.2,4428.7,0.1128]
[1755282508278,0.4788877,4429.2,4428.2,5.76222856]
[1755282508279,3.20359775,4429.1,4428.5,0.1128]
[1755282508506,2.25785448,4429.0,4428.5,0.1128]
[1755282508713,0.4788877,4429.1,4428.5,0.1128]
[1755282509014,0.9643,4429.0,4428.5,0.1128]
[1755282509219,0.9643,4428.9,4428.5,0.1128]
[1755282509445,0.9643,4428.8,4428.3,0.1128]
[1755282509577,0.1128,4428.5,4427.9,0.1128]
[1755282509782,0.4669,4428.4,4427.9,0.1128]
[1755282509982,0.9643,4428.3,4427.9,0.1128]
[1755282510219,0.9643,4428.2,4427.9,0.1128]
[1755282510415,0.1128,4428.5,4427.9,0.1128]
[1755282510593,0.1128,4428.5,4428.0,2.25833846]
[1755282510918,0.1128,4428.5,4428.0,0.81336389]
[1755282511118,0.1128,4428.5,4428.0,2.25831754]
[1755282511119,0.4669,4428.4,4428.0,2.25831754]
[1755282511429,0.4669,4428.3,4427.7,3.504]
[1755282511633,0.4669,4428.3,4428.2,2.25825391]
[1755282511782,0.4669,4428.3,4428.2,0.1128]
[1755282512339,0.9643,4428.3,4428.2,0.1128]
[1755282512545,0.9643,4428.3,4426.8,0.001]
[1755282512546,1.58750647,4428.3,4426.8,0.001]
[1755282512718,0.59725589,4427.3,4426.8,0.001]
[1755282512903,1.07614359,4427.2,4426.8,0.001]
[1755282513103,0.4788877,4427.1,4426.8,0.001]
[1755282513319,1.26010414,4427.0,4426.8,0.001]
[1755282513518,0.4788877,4426.9,4426.8,0.001]
[1755282513717,1.4431877,4426.9,4426.8,0.001]
[1755282514705,3.70210477,4426.9,4426.8,0.001]
[1755282515344,7.21610477,4426.9,4426.8,0.001]
[1755282516038,3.70210477,4426.9,4426.8,0.001]
[1755282516351,8.19121937,4426.9,4426.8,0.001]
[1755282516518,4.67821937,4426.9,4426.8,0.001]
[1755282516718,8.19121937,4426.9,4426.8,0.001]
[1755282517520,4.67821937,4426.9,4426.8,0.001]
[1755282517707,8.19021937,4426.9,4426.8,0.001]
[1755282518102,8.19021937,4426.9,4426.4,0.001]
[1755282518103,11.99044208,4426.9,4426.4,0.001]
[1755282518309,6.45945527,4426.5,4426.4,0.001]
[1755282518535,7.14560151,4426.5,4426.4,0.001]
[1755282518709,8.04280151,4426.5,4426.4,0.001]
[1755282519038,8.03607348,4426.5,4426.4,0.001]
[1755282519344,6.84246744,4426.5,4426.4,0.001]
[1755282519544,8.01447205,4426.5,4426.4,0.001]
[1755282519847,9.2064304,4426.5,4426.4,0.001]
[1755282520006,8.01277664,4426.5,4426.4,0.001]
[1755282520411,11.31656582,4426.5,4426.4,0.001]
[1755282520643,11.91289666,4426.5,4426.4,0.001]
[1755282521023,11.91286489,4426.5,4426.4,0.001]
[1755282521419,11.31656582,4426.5,4426.4,0.001]
[1755282521947,11.91286489,4426.5,4426.4,0.001]
[1755282522320,11.31656582,4426.5,4426.4,0.001]
[1755282522510,11.42936582,4426.5,4426.4,0.001]
[1755282523141,7.91836582,4426.5,4426.4,0.001]
[1755282523349,11.42736582,4426.5,4426.4,0.001]
[1755282523552,7.91836582,4426.5,4426.4,0.001]
[1755282523854,9.16824462,4426.5,4426.4,0.001]
[1755282524029,6.16824462,4426.5,4426.4,0.001]
[1755282524353,4.519,4426.5,4426.4,0.001]
[1755282524528,4.0649,4426.5,4426.4,0.001]
[1755282525453,9.7781212,4426.5,4426.4,0.001]
[1755282525756,10.2541181,4426.5,4426.4,0.001]
[1755282525914,11.50544039,4426.5,4426.4,0.001]
[1755282526855,11.50844039,4426.5,4426.4,0.001]
[1755282527238,0.1128,4426.5,4426.4,0.001]
[1755282527411,3.6248,4426.5,4426.4,0.001]
[1755282527615,3.623671,4426.5,4426.4,0.001]
[1755282528250,4.066771,4426.5,4426.4,0.001]
[1755282528625,6.7799922,4426.5,4426.4,0.001]
[1755282528814,10.45799142,4426.5,4426.4,0.001]
[1755282529547,10.9338092,4426.5,4426.4,0.001]
[1755282531361,7.4229382,4426.5,4426.4,0.001]
[1755282531673,18.4869382,4426.5,4426.4,0.001]
[1755282531822,19.08323727,4426.5,4426.4,0.001]
[1755282532226,19.17379627,4426.5,4426.4,0.001]
[1755282532422,18.5774972,4426.5,4426.4,0.001]
[1755282532671,24.0044972,4426.5,4426.4,1e-08]
[1755282532872,20.4904972,4426.5,4426.4,1e-08]
[1755282533369,24.0034972,4426.5,4426.4,1e-08]
[1755282533570,24.59893038,4426.5,4426.4,1e-08]
[1755282533867,0.55,4425.9,4425.5,1e-08]
[1755282534161,5.80958062,4425.6,4425.5,1e-08]
[1755282534528,10.7005984,4425.6,4425.5,1e-08]
[1755282534723,11.49434361,4425.6,4425.5,1e-08]
[1755282534948,12.79346512,4425.6,4425.5,1e-08]
[1755282535357,11.99971991,4425.6,4425.5,1e-08]
[1755282535670,12.00043099,4425.6,4425.5,1e-08]
[1755282536166,12.09101099,4425.6,4425.5,1e-08]
[1755282537080,8.57301099,4425.6,4425.5,1e-08]
[1755282537375,12.20550917,4425.6,4425.5,1e-08]
[1755282537881,8.68950917,4425.6,4425.5,1e-08]
[1755282538042,11.20140917,4425.6,4425.5,1e-08]
[1755282538235,11.65550917,4425.6,4425.5,1e-08]
[1755282538473,12.84911521,4425.6,4425.5,1e-08]
[1755282539435,11.65550917,4425.6,4425.5,1e-08]
[1755282539636,18.65550917,4425.6,4425.5,1e-08]
[1755282539836,2.25978486,4425.2,4425.1,0.02]
[1755282540032,10.13639112,4425.2,4425.1,0.02]
[1755282540238,10.37241294,4425.2,4425.1,0.02]
[1755282540540,10.57983501,4425.2,4425.1,0.02]
[1755282541043,11.7736047,4425.2,4425.1,0.02]
[1755282541545,10.57983501,4425.2,4425.1,0.02]
[1755282541941,10.13673501,4425.2,4425.1,0.02]
[1755282542182,9.45573579,4425.2,4425.1,0.02]
[1755282542688,9.45573579,4425.2,4425.1,0.021]
[1755282542850,17.56077177,4425.2,4425.1,0.021]
[1755282543395,17.56077177,4425.2,4424.1,0.02]
[1755282543396,3.0,4425.1,4424.1,0.02]
[1755282543691,2.26029564,4424.2,4424.1,0.02]
[1755282543872,6.3626245,4424.2,4424.1,0.02]
[1755282544237,4.10232886,4424.2,4424.1,0.02]
[1755282545449,4.10132886,4424.2,4424.1,0.02]
[1755282546240,6.3616245,4424.2,4424.1,0.02]
[1755282547047,7.55911138,4424.2,4424.1,0.02]
[1755282547252,8.98789662,4424.2,4424.1,0.02]
[1755282547655,15.27860974,4424.2,4424.1,0.02]
[1755282547835,18.69439468,4424.2,4424.1,0.02]
[1755282548256,18.69431852,4424.2,4424.1,0.02]
[1755282549078,14.26401852,4424.2,4424.1,0.02]
[1755282549384,17.77501852,4424.2,4424.1,0.02]
[1755282549785,18.69331852,4424.2,4424.1,0.02]
[1755282549939,18.48550369,4424.2,4424.1,0.02]
[1755282550167,14.97450369,4424.2,4424.1,0.02]
[1755282550366,18.69421762,4424.2,4424.1,0.02]
[1755282550810,18.20501762,4424.2,4424.1,0.02]
[1755282551693,18.69321762,4424.2,4424.1,0.02]
[1755282551892,18.48550369,4424.2,4424.1,0.02]
[1755282552190,18.20502015,4424.2,4424.1,0.02]
[1755282552371,17.77492015,4424.2,4424.1,0.02]
[1755282552570,14.26392015,4424.2,4424.1,0.02]
[1755282552911,7.79722281,4424.2,4424.1,0.02]
[1755282553105,11.09832886,4424.2,4424.1,0.02]
[1755282554271,11.09732886,4424.2,4424.1,0.02]
[1755282554472,7.58932886,4424.2,4424.1,0.02]
[1755282554895,7.58932886,4424.2,4423.3,2.87285499]
[1755282554896,13.35664445,4424.2,4423.3,0.1128]
[1755282555202,0.79775813,4423.5,4423.3,2.37354351]
[1755282555365,0.79775813,4423.5,4423.4,2.26070443]
[1755282555571,0.79775813,4423.5,4423.4,2.76000443]
[1755282555572,4.7835518,4423.5,4423.4,2.76000443]
[1755282556007,1.2765518,4423.5,4423.4,2.76000443]
[1755282556369,0.47879367,4423.5,4423.4,2.76000443]
[1755282557396,3.98479367,4423.5,4423.4,2.76000443]
[1755282558197,3.98479367,4423.5,4423.4,3.32701181]
[1755282559093,3.98479367,4423.5,4423.4,3.14761181]
[1755282559294,0.47879367,4423.5,4423.4,3.14761181]
[1755282559601,0.47879367,4423.5,4423.3,0.1128]
[1755282559925,0.79775813,4423.7,4423.3,0.1128]
[1755282559926,4.58151916,4423.4,4423.3,0.1138]
[1755282560153,4.58251916,4423.4,4423.3,2.37455554]
[1755282560447,3.98279367,4423.4,4423.3,0.1138]
[1755282560738,4.58251916,4423.4,4423.3,2.37455554]
[1755282561235,1.07851916,4423.4,4423.3,2.37455554]
[1755282561541,3.98279367,4423.4,4423.3,2.37455554]
[1755282562038,0.47879367,4423.4,4423.3,2.37455554]
[1755282562239,3.98179367,4423.4,4423.3,2.84009656]
[1755282562424,3.98179367,4423.4,4423.3,3.33939656]
[1755282562733,0.47879367,4423.4,4423.3,2.84009656]
[1755282562941,3.98179367,4423.4,4423.3,2.84009656]
[1755282563900,3.98179367,4423.4,4423.3,3.33939656]
[1755282564137,0.47879367,4423.4,4423.3,3.33939656]
[1755282564536,0.47879367,4423.4,4423.3,2.84009656]
[1755282565036,0.47879367,4423.4,4423.3,3.33939656]
[1755282565561,0.59972549,4424.2,4423.5,2.26065332]
[1755282565772,3.98386802,4424.1,4424.0,2.26039783]
[1755282567471,0.48086802,4424.1,4424.0,2.26039783]
[1755282567776,3.98186802,4424.1,4424.0,2.26039783]
[1755282568266,3.501,4424.1,4424.0,2.26039783]
[1755282570263,0.59366802,4424.6,4424.1,2.26031696]
[1755282570468,0.1128,4424.6,4424.3,2.26023348]
[1755282570654,3.499,4424.5,4424.4,2.2601682]
[1755282571032,3.499,4424.5,4423.9,0.27071734]
[1755282571232,3.499,4424.5,4424.2,2.26027936]
[1755282571428,3.499,4424.5,4424.3,2.37303449]
[1755282571763,3.499,4424.5,4424.3,0.1128]
[1755282571968,3.9291,4424.5,4424.3,0.1128]
[1755282572168,0.9183,4424.4,4424.3,0.1128]
[1755282572571,0.4301,4424.4,4424.3,0.1128]
[1755282573771,3.499,4424.5,4424.3,2.37304455]
[1755282573939,3.499,4424.5,4424.3,0.1128]
[1755282574954,3.499,4424.5,4424.3,2.3730329]
[1755282575378,0.4301,4424.7,4424.3,2.3730329]
[1755282575579,3.498,4424.6,4424.3,2.3730329]
[1755282575776,3.498,4424.6,4424.3,0.1128]
[1755282576092,0.4301,4424.6,4424.3,0.1128]
[1755282576388,3.953,4424.5,4424.3,0.1128]
[1755282576688,4.4529,4424.4,4423.9,0.1128]
[1755282576888,4.4529,4424.4,4423.9,0.0628]
[1755282577188,3.498,4424.3,4423.9,0.0628]
[1755282577492,0.455,4424.7,4424.0,2.26035509]
[1755282577493,3.498,4424.2,4424.0,2.26035509]
[1755282577659,3.498,4424.2,4423.9,2.37323962]
[1755282578793,0.9549,4424.1,4423.9,0.1128]
[1755282579193,3.498,4424.0,4423.9,0.1128]
[1755282579360,0.4999,4424.1,4423.9,0.1128]
[1755282579555,0.455,4424.0,4423.9,0.1128]
[1755282579761,3.953,4424.0,4423.9,0.1128]
[1755282579996,4.4529,4424.0,4423.9,0.1128]
[1755282580568,4.4529,4424.0,4423.6,0.1128]
[1755282580903,0.9549,4423.9,4423.6,0.1128]
[1755282581370,5.75840782,4424.0,4423.6,0.1128]
[1755282581570,0.9549,4423.9,4423.6,0.1128]
[1755282582221,0.9549,4423.8,4423.6,0.1128]
[1755282582509,3.498,4423.7,4423.4,0.1128]
[1755282582802,3.498,4423.7,4423.5,2.26064667]
[1755282583006,3.953,4423.7,4423.4,0.1128]
[1755282583166,0.9549,4423.6,4423.4,0.1128]
[1755282583701,0.455,4423.6,4423.4,2.37349987]
[1755282583863,3.498,4423.5,4423.4,2.3734869]
[1755282584670,3.953,4423.5,4423.4,0.1128]
[1755282584999,3.498,4423.5,4423.4,2.37350443]
[1755282585581,3.498,4423.5,4423.4,0.1128]
[1755282587014,3.953,4423.5,4423.4,0.1128]
[1755282587178,3.498,4423.5,4423.4,2.37350443]
[1755282587715,3.498,4423.5,4423.4,0.1128]
[1755282588397,3.953,4423.5,4423.4,0.1128]
[1755282588921,4.8482,4423.5,4423.4,0.1128]
[1755282589491,4.961,4423.5,4423.3,0.001]
[1755282589817,0.9549,4423.4,4423.3,0.001]
[1755282590016,4.4529,4423.4,4423.3,0.001]
[1755282590239,6.71360443,4423.4,4423.3,0.001]
[1755282590438,8.18980312,4423.4,4423.3,0.001]
[1755282590937,5.92909869,4423.4,4423.3,0.001]
[1755282591140,8.18980312,4423.4,4423.3,0.001]
[1755282592209,22.24781364,4423.4,4418.8,0.16777725]
[1755282592511,0.55,4422.9,4419.8,2.26253216]
[1755282592711,4.4799,4422.8,4421.3,2.26176986]
[1755282592923,3.525,4422.7,4421.4,0.1794]
[1755282593139,2.26111337,4422.6,4420.8,3.0]
[1755282593302,2.26116449,4422.5,4420.8,2.26201168]
[1755282593505,4.24810215,4422.4,4421.1,2.2818719]
[1755282593705,4.72692951,4422.4,4421.1,2.2818719]
[1755282593972,3.21616676,4422.3,4421.3,2.26177715]
[1755282594235,3.529,4422.2,4422.0,2.26139106]
[1755282594442,3.53,4422.5,4422.4,2.26121414]
[1755282594638,3.53,4422.6,4422.4,2.26121414]
[1755282594939,0.455,4423.1,4422.2,2.26126767]
[1755282595115,3.53,4423.0,4422.2,2.26126767]
[1755282595336,4.0299,4423.0,4422.1,2.26133283]
[1755282595664,0.47849044,4423.2,4422.1,2.26133283]
[1755282595665,4.43483904,4422.9,4422.1,2.26133283]
[1755282595848,0.9549,4422.8,4422.4,2.26120336]
[1755282596044,3.529,4422.7,4422.4,2.26120336]
[1755282596353,1.94592156,4423.3,4421.7,0.52256252]
[1755282596554,3.528,4423.2,4422.8,2.26100155]
[1755282596916,3.528,4423.2,4422.9,2.26094819]
[1755282597123,3.528,4423.2,4422.7,2.26106224]
[1755282597319,0.455,4423.7,4422.3,0.1794]
[1755282597571,3.0,4423.5,4422.4,2.26121562]
[1755282597732,0.6983,4423.4,4422.2,0.3209]
[1755282597933,0.47837134,4423.6,4422.2,0.3209]
[1755282598141,3.528,4423.5,4422.2,0.3209]
[1755282598537,3.528,4423.5,4422.8,2.26100325]
[1755282598835,0.455,4423.7,4422.9,2.26094165]
[1755282599037,3.84853824,4423.6,4422.2,0.3209]
[1755282599376,3.527,4423.6,4422.9,2.26094694]
[1755282599577,0.9549,4423.5,4421.2,3.5003]
[1755282599744,6.21557056,4423.5,4422.3,2.26126256]
[1755282600059,2.26081437,4423.2,4422.3,2.26126256]
[1755282600223,4.4819,4423.1,4421.2,7.0263]
[1755282600427,4.4819,4423.1,4421.1,0.02]
[1755282600742,4.4819,4423.1,4421.2,2.26179883]
[1755282600743,3.9549,4423.0,4421.2,2.26179883]
[1755282600935,4.43317258,4423.0,4421.1,0.02]
[1755282601150,2.26101112,4422.8,4421.3,0.001]
[1755282601494,1.54821248,4422.7,4421.6,2.26160741]
[1755282601666,1.54821248,4422.7,4421.3,0.001]
[1755282601667,2.26116143,4422.6,4421.5,2.26167033]
[1755282601868,0.9549,4422.6,4421.5,2.26162941]
[1755282602159,2.26121689,4422.4,4421.6,2.26162243]
[1755282602361,0.1128,4421.9,4421.5,2.2616704]
[1755282602579,3.6388,4421.9,4421.5,2.2616704]
[1755282602779,4.1387,4421.9,4421.6,2.26162286]
[1755282602985,0.455,4421.8,4421.4,2.26168842]
[1755282603137,1.36428,4421.8,4421.3,0.1138]
[1755282603338,1.36428,4421.8,4421.3,0.001]
[1755282603739,0.55,4421.2,4418.1,0.02]
[1755282604036,0.55,4421.2,4414.1,0.02]
[1755282604037,0.55,4418.8,4414.1,0.02]
[1755282604234,0.59746813,4418.2,4416.1,0.13822985]
[1755282604487,1.74424344,4418.1,4416.1,0.13822985]
[1755282604636,1.74424344,4418.1,4416.1,0.02]
[1755282604637,2.26387756,4417.2,4416.1,0.02]
[1755282605095,3.0,4417.1,4416.1,0.02]
[1755282605283,4.2774956,4417.0,4416.1,0.02]
[1755282605482,3.0,4416.8,4416.1,0.02]
[1755282605786,2.26439019,4416.2,4416.1,0.02]
[1755282606005,0.55,4416.1,4415.1,0.02]
[1755282606197,0.55,4415.6,4415.1,0.02]
[1755282606522,3.0,4415.2,4415.1,0.02]
[1755282606811,7.167748,4415.2,4415.1,0.02]
[1755282607110,4.95200377,4415.2,4415.1,0.02]
[1755282607247,4.26223032,4415.2,4415.1,0.02]
[1755282607606,11.15194988,4415.2,4415.1,0.02]
[1755282607760,2.26541615,4414.2,4414.1,0.02]
[1755282607961,0.47119438,4414.2,4414.1,0.02]
[1755282608179,5.13089438,4414.2,4414.1,0.02]
[1755282608383,9.45301605,4414.2,4414.1,0.02]
[1755282608585,10.631002,4414.2,4414.1,0.02]
[1755282608950,9.65687957,4414.2,4414.1,0.02]
[1755282609191,7.9894322,4414.2,4414.1,0.02]
[1755282609392,3.0,4414.1,4413.1,0.02]
[1755282609594,0.78107638,4413.3,4413.2,2.26592948]
[1755282609777,0.5859542,4413.7,4413.2,2.26592948]
[1755282609951,0.4896,4415.4,4413.3,0.2394]
[1755282610308,0.2035544,4415.5,4413.8,0.55]
[1755282610587,0.2035544,4415.5,4413.1,0.02]
[1755282610588,0.2035544,4415.5,4413.9,2.50496559]
[1755282610893,0.2035544,4415.5,4413.4,5.26578168]
[1755282610894,0.4411,4415.4,4414.0,0.25049656]
[1755282611045,4.2996,4415.3,4413.1,3.02]
[1755282611253,2.26504522,4415.0,4413.1,0.02]
[1755282611506,1.33758578,4415.2,4413.5,2.265771]
[1755282611507,0.40627549,4414.9,4413.5,2.265771]
[1755282611645,0.9307,4414.8,4413.2,2.26592948]
[1755282611850,3.0,4414.6,4413.3,2.50527814]
[1755282612092,3.811,4414.5,4413.4,0.25252781]
[1755282612294,0.4896,4414.8,4414.1,2.26546022]
[1755282612496,3.811,4414.4,4414.1,2.26546022]
[1755282612826,3.81,4414.3,4414.1,2.26546022]
[1755282612947,3.81,4414.3,4413.3,0.2394]
[1755282613158,3.81,4414.3,4413.5,2.26577546]
[1755282613353,0.4896,4414.8,4413.5,0.25051755]
[1755282613550,0.4896,4414.8,4413.4,2.2658268]
[1755282613855,0.4896,4414.8,4413.1,3.02]
[1755282613856,3.807,4415.6,4413.6,0.55]
[1755282614163,2.04955372,4416.4,4413.6,0.55]
[1755282614164,0.1136,4415.9,4414.4,0.55]